bitfinex/quotes_ETHUSD_20241105
["timestamp","ask_amount","ask_price","bid_price","bid_amount"]
[1730830197595,0.0065825,2457.8,2457.7,12.74188528]
[1730830198194,2.5e-06,2457.8,2457.7,12.74188528]
[1730830202702,2.5e-06,2457.8,2457.7,12.11407569]
[1730830203280,2.5e-06,2457.8,2457.7,7.44931072]
[1730830203523,2.5e-06,2457.8,2457.7,8.32907569]
[1730830204498,2.5e-06,2457.8,2457.7,8.32898892]
[1730830204698,2.5e-06,2457.8,2457.7,11.32898892]
[1730830205915,2.5e-06,2457.8,2457.7,11.65891221]
[1730830209716,2.5e-06,2457.8,2457.7,11.32898892]
[1730830209924,2.5e-06,2457.8,2457.7,11.65899009]
[1730830211008,2.5e-06,2457.8,2457.7,12.42729009]
[1730830214366,2.5e-06,2457.8,2457.7,18.49804407]
[1730830214570,2.5e-06,2457.8,2457.7,18.16812716]
[1730830215275,2.5e-06,2457.8,2457.7,17.83812599]
[1730830215482,2.5e-06,2457.8,2457.7,18.16838763]
[1730830216160,2.5e-06,2457.8,2457.7,18.87332809]
[1730830216541,2.5e-06,2457.8,2457.7,18.87326638]
[1730830216744,2.5e-06,2457.8,2457.7,19.93058441]
[1730830217054,2.5e-06,2457.8,2457.7,18.87326638]
[1730830217380,2.5e-06,2457.8,2457.7,18.16838763]
[1730830217544,2.5e-06,2457.8,2457.7,19.93059351]
[1730830217745,2.5e-06,2457.8,2457.7,18.87326998]
[1730830218985,2.5e-06,2457.8,2457.7,19.93056067]
[1730830219542,0.84470653,2458.6,2458.2,0.8231]
[1730830219741,0.84470653,2458.6,2458.5,4.06752]
[1730830219742,0.84693384,2458.6,2458.5,4.06752]
[1730830220086,0.84693384,2458.6,2458.5,4.39769776]
[1730830220246,0.84693384,2458.6,2458.5,4.45027444]
[1730830220247,1.26918929,2458.6,2458.5,4.45027444]
[1730830221694,0.84708706,2458.6,2458.5,4.45027444]
[1730830221985,0.84708706,2458.6,2458.5,7.45027444]
[1730830222296,0.84715629,2458.6,2458.5,7.45027444]
[1730830222496,2.05718929,2458.7,2458.6,7.06735]
[1730830222996,2.05718929,2458.7,2458.6,7.44983764]
[1730830223997,1.26918929,2458.8,2458.7,4.06718]
[1730830224202,1.26918929,2458.8,2458.7,4.39727822]
[1730830224405,1.26918929,2458.8,2458.7,4.44942672]
[1730830224556,1.68655566,2458.8,2458.7,4.44942672]
[1730830225496,1.27043087,2458.8,2458.7,4.11938218]
[1730830226043,1.68655566,2458.8,2458.7,4.11938218]
[1730830226476,1.68655566,2458.9,2458.8,4.06702]
[1730830227188,2.11750699,2458.9,2458.8,4.11903495]
[1730830228794,1.69423805,2458.9,2458.8,4.11903495]
[1730830229403,2.11750699,2458.9,2458.8,5.7871723]
[1730830229701,0.8075,2459.0,2458.9,4.06685]
[1730830229911,0.8075,2459.0,2458.9,4.11867774]
[1730830231680,2.92902763,2459.0,2458.9,4.11867774]
[1730830231883,0.8075,2459.0,2458.9,4.11867774]
[1730830233532,2.12084183,2459.0,2458.9,7.11867774]
[1730830234398,0.0605544,2459.1,2459.0,4.06669]
[1730830234627,2.18128851,2459.1,2459.0,5.73482735]
[1730830234777,2.18128851,2459.1,2459.0,5.78628334]
[1730830234979,0.0605544,2459.1,2459.0,5.78628334]
[1730830236476,2.18176425,2459.1,2459.0,5.78628334]
[1730830236903,0.0605544,2459.1,2459.0,5.78628334]
[1730830237519,0.8178544,2459.1,2459.0,0.05145599]
[1730830237681,1.56079196,2459.1,2459.0,0.05145599]
[1730830237880,0.8178544,2459.1,2458.9,4.06685]
[1730830238280,0.8178544,2459.1,2459.0,0.05145599]
[1730830240679,0.8178544,2459.1,2459.0,4.11814599]
[1730830240900,0.0605544,2459.1,2459.0,5.78628334]
[1730830241624,0.0605544,2459.1,2459.0,6.11649031]
[1730830241820,2.18215945,2459.1,2459.0,6.11649031]
[1730830242324,0.0605544,2459.1,2459.0,6.11649031]
[1730830242521,2.18134881,2459.1,2459.0,6.11649031]
[1730830242720,0.0605544,2459.1,2459.0,0.38166296]
[1730830242922,0.8795544,2459.1,2459.0,0.05145599]
[1730830243225,0.8795544,2459.1,2458.8,5.73510735]
[1730830243226,0.8795544,2459.1,2458.9,4.06678]
[1730830243431,2.12061764,2459.0,2458.9,4.06678]
[1730830243721,2.12061764,2459.0,2458.9,4.39708944]
[1730830244314,3.00017204,2459.1,2459.0,4.06669]
[1730830244483,3.00017204,2459.1,2459.0,6.06515741]
[1730830244818,0.8795544,2459.1,2459.0,6.06515741]
[1730830245019,0.8795544,2459.1,2459.0,6.0651576]
[1730830245224,0.8795544,2459.1,2459.0,5.73482735]
[1730830245523,0.8795544,2459.1,2459.0,1.9985072]
[1730830247322,3.00047562,2459.1,2459.0,0.3304238]
[1730830247499,3.00047562,2459.1,2458.8,5.73506735]
[1730830247500,0.8795544,2459.1,2458.8,5.73506735]
[1730830247699,1.6964279,2459.0,2458.9,0.33042262]
[1730830247922,3.00008975,2459.1,2458.9,0.33042262]
[1730830248124,2.12053535,2459.0,2458.5,3.0]
[1730830248432,0.8093,2458.5,2458.4,1.66813735]
[1730830248588,0.8093,2458.5,2458.4,0.33048278]
[1730830249010,1.65742619,2458.5,2458.4,0.33048278]
[1730830252086,1.65742619,2458.5,2458.4,4.39816278]
[1730830252328,1.65742619,2458.5,2458.4,4.39798047]
[1730830254235,1.65742619,2458.5,2458.4,4.06768]
[1730830254722,1.65742619,2458.5,2458.4,4.39793322]
[1730830256395,0.8093,2458.5,2458.4,4.39793322]
[1730830257134,1.65815218,2458.5,2458.4,0.33025322]
[1730830257338,0.8093,2458.5,2458.4,0.33025322]
[1730830257551,0.8093,2458.5,2458.4,4.39793322]
[1730830257839,2.08148929,2458.5,2458.4,4.39793322]
[1730830258721,0.8093,2458.5,2458.4,4.45067154]
[1730830259209,1.65837205,2458.5,2458.4,4.45067154]
[1730830259410,2.08148929,2458.5,2458.4,4.45067154]
[1730830259961,2.08148929,2458.5,2458.4,4.45050381]
[1730830260322,2.08148929,2458.5,2458.4,0.38282381]
[1730830262265,0.8093,2458.5,2458.4,0.38282381]
[1730830263127,0.8093,2458.5,2458.4,0.05273832]
[1730830263463,0.8093,2458.5,2457.9,4.06839]
[1730830263464,7.4873929,2458.5,2458.0,4.06833]
[1730830263648,7.4873929,2458.5,2458.4,0.05274345]
[1730830263850,0.7897,2458.3,2457.9,4.39844487]
[1730830264068,0.8491387,2458.0,2457.9,4.06842]
[1730830264272,0.8491387,2458.0,2457.9,4.39844223]
[1730830265259,0.8491387,2458.1,2457.9,4.39844223]
[1730830265475,0.8491387,2458.0,2457.9,4.06842]
[1730830265677,0.8491387,2458.0,2457.9,4.39829175]
[1730830265854,0.8491387,2458.1,2457.8,4.06857]
[1730830266100,0.8491387,2458.0,2457.9,0.3298622]
[1730830266365,0.7985,2457.8,2457.3,3.0]
[1730830266576,0.7985,2457.8,2457.4,0.32981218]
[1730830266577,0.7985,2457.6,2457.4,0.32981218]
[1730830266730,0.84820108,2457.5,2457.3,0.32981218]
[1730830266928,0.84820108,2457.4,2457.1,0.32981218]
[1730830267126,0.84820108,2457.4,2457.0,4.06989]
[1730830267127,0.84820108,2457.5,2457.2,0.32981218]
[1730830267375,1.64690108,2457.4,2456.9,4.08007]
[1730830267566,1.64690108,2457.4,2456.8,4.66101214]
[1730830267567,0.84820108,2457.3,2457.0,0.32955731]
[1730830267768,0.84820108,2457.3,2456.9,0.32955731]
[1730830268147,0.7987,2457.1,2456.6,4.89662563]
[1730830268348,1.64690108,2457.1,2456.4,4.0709]
[1730830268550,0.84820108,2456.9,2456.4,4.0709]
[1730830268750,0.84820108,2456.9,2456.2,4.07119]
[1730830268751,0.799,2456.8,2456.2,4.07119]
[1730830268965,1.64720108,2456.8,2456.1,3.87441214]
[1730830269163,0.799,2456.8,2456.0,4.07156]
[1730830269390,0.799,2456.5,2456.0,4.07156]
[1730830269750,0.799,2456.5,2456.0,4.07163]
[1730830269949,0.799,2456.5,2456.0,4.14212856]
[1730830270195,0.799,2456.5,2456.2,4.07132]
[1730830271388,0.799,2456.5,2456.0,7.14212856]
[1730830271389,0.799,2456.5,2456.1,3.0]
[1730830271756,0.799,2456.5,2456.1,7.07146]
[1730830272400,0.799,2456.5,2456.2,4.07132]
[1730830272905,0.799,2456.5,2456.1,7.07149]
[1730830273697,0.799,2456.5,2456.2,0.04564495]
[1730830273863,0.799,2456.5,2456.2,4.11683495]
[1730830274365,0.799,2456.5,2456.2,0.04564495]
[1730830274596,8.14243,2456.3,2456.0,0.07049856]
[1730830274764,4.07134,2456.2,2456.1,0.04515409]
[1730830274970,0.759,2456.2,2455.6,4.07218]
[1730830275265,0.759,2456.2,2455.7,0.04574389]
[1730830275702,4.83033,2456.2,2455.7,0.04574389]
[1730830276207,4.83033,2456.2,2455.9,4.07172]
[1730830276208,0.759,2456.2,2455.9,4.07172]
[1730830276415,0.759,2456.2,2456.0,0.04530152]
[1730830276871,0.759,2456.2,2455.7,4.07201]
[1730830277071,0.759,2456.2,2456.1,0.04515409]
[1730830277299,0.759,2456.2,2455.7,4.07201]
[1730830277470,0.759,2456.2,2456.1,0.04515409]
[1730830277677,5.8098873,2456.2,2455.7,4.07201]
[1730830277871,5.8098873,2456.2,2456.1,0.04515409]
[1730830278066,5.8098873,2456.2,2455.7,4.07201]
[1730830278283,1.7385573,2456.2,2456.1,0.04529112]
[1730830278569,0.759,2456.2,2456.1,0.04529112]
[1730830278765,0.759,2456.2,2455.7,4.07201]
[1730830279007,0.759,2456.2,2455.8,0.04573345]
[1730830279180,0.759,2456.2,2455.7,4.07201]
[1730830279384,0.8326,2456.1,2455.8,0.04573345]
[1730830279588,5.801697,2456.1,2455.5,8.21546279]
[1730830279909,4.90418,2456.1,2455.6,4.11832839]
[1730830281008,0.8326,2456.1,2455.8,4.07195]
[1730830281325,0.8326,2456.1,2455.9,0.04558599]
[1730830281474,4.9041,2456.1,2455.9,0.04558599]
[1730830281675,4.9041,2456.1,2455.6,4.07231]
[1730830281981,7.62232,2455.6,2455.5,0.07070279]
[1730830282287,7.62232,2455.6,2454.2,4.1350844]
[1730830282288,3.55,2455.6,2454.5,4.07402]
[1730830282503,4.07308,2455.2,2454.5,4.23899902]
[1730830282672,0.7601,2455.1,2454.6,0.03798856]
[1730830282874,0.7601,2455.1,2454.5,4.0741]
[1730830283110,1.243418,2455.1,2454.7,0.0341897]
[1730830283297,1.243418,2455.1,2454.3,8.14876]
[1730830283505,5.316568,2455.1,2454.6,0.08088246]
[1730830283719,5.316568,2455.1,2454.4,3.0]
[1730830283897,5.316568,2455.1,2454.7,0.07279421]
[1730830284097,0.9389648,2455.0,2454.4,7.0743]
[1730830284316,0.9389648,2455.0,2454.5,4.16027583]
[1730830285011,0.9389648,2455.0,2454.6,0.03798856]
[1730830285220,0.9389648,2455.0,2454.5,4.07411]
[1730830285396,0.9389648,2455.0,2454.6,0.15909487]
[1730830285582,0.9389648,2455.0,2454.6,0.07713739]
[1730830285776,0.9389648,2455.0,2454.6,0.18033211]
[1730830286731,4.88851,2454.7,2454.6,0.18033211]
[1730830286878,0.8147,2454.7,2454.2,0.0605544]
[1730830287079,4.07408,2454.6,2454.3,0.15641104]
[1730830287323,0.8117,2454.5,2454.3,0.15641104]
[1730830287527,0.01,2454.7,2454.3,0.15641104]
[1730830287528,5.374588,2454.4,2454.3,0.15641104]
[1730830287731,5.374588,2454.4,2454.3,0.03885785]
[1730830287913,5.374588,2454.4,2454.2,0.0605544]
[1730830287914,4.07448,2454.3,2454.2,0.0605544]
[1730830288214,4.07448,2454.3,2454.2,0.11198134]
[1730830288215,0.8117,2454.3,2454.2,0.11198134]
[1730830291314,0.8117,2454.3,2454.2,0.0605544]
[1730830291490,1.302294,2454.3,2454.2,0.0605544]
[1730830292421,1.852294,2454.3,2454.2,0.0605544]
[1730830292625,1.852294,2454.3,2454.2,3.93496654]
[1730830292916,1.852294,2454.3,2454.2,3.98243756]
[1730830293431,1.3617,2454.3,2454.2,3.98243756]
[1730830295146,0.8117,2454.3,2454.2,3.98243756]
[1730830295710,0.8117,2454.3,2454.2,0.0605544]
[1730830296409,0.8117,2454.3,2454.2,0.10505715]
[1730830296910,5.43618,2454.3,2454.2,0.10505715]
[1730830297136,6.38923,2454.3,2454.2,0.10505715]
[1730830297485,6.38923,2454.3,2454.2,0.0605544]
[1730830299908,6.38923,2454.3,2454.2,0.10551992]
[1730830300552,2.31475,2454.3,2454.2,0.10551992]
[1730830301008,6.38923,2454.3,2454.2,0.10551992]
[1730830302410,2.31475,2454.3,2454.2,0.10551992]
[1730830303006,2.31475,2454.3,2454.2,0.06961769]
[1730830303007,11.38923,2454.3,2454.2,0.06961769]
[1730830303188,0.7922,2453.7,2453.0,0.0605544]
[1730830303386,0.7922,2453.7,2453.1,0.04498453]
[1730830303560,0.7822,2453.7,2453.1,4.64033197]
[1730830303758,0.7822,2453.7,2453.4,4.59534744]
[1730830303957,0.7822,2453.7,2453.5,0.04457065]
[1730830305489,0.7822,2453.7,2453.2,4.07629]
[1730830305713,0.7822,2453.7,2453.6,0.04451555]
[1730830305911,0.7822,2453.7,2453.1,8.67181744]
[1730830306087,0.7822,2453.7,2453.6,0.04451555]
[1730830306287,0.7822,2453.7,2453.2,4.0763]
[1730830306486,0.7822,2453.7,2453.6,0.04451555]
[1730830306820,0.56,2454.3,2453.6,0.04451555]
[1730830306821,0.8275,2454.1,2453.6,0.04451555]
[1730830307820,0.8275,2454.1,2453.7,4.59534744]
[1730830307996,0.8275,2454.1,2453.8,0.04762167]
[1730830308194,0.8275,2454.1,2453.7,4.59534744]
[1730830308749,0.8275,2454.1,2453.8,0.04762167]
[1730830309083,0.7678,2453.9,2453.0,0.8818544]
[1730830309304,0.7678,2453.9,2453.1,3.0]
[1730830309508,0.7678,2453.9,2453.0,5.47720184]
[1730830310047,0.48629,2453.8,2453.0,5.47720184]
[1730830310336,0.7678,2453.4,2453.0,4.65590184]
[1730830310836,0.7678,2453.4,2453.0,0.0605544]
[1730830311000,4.07624,2453.3,2453.0,0.0605544]
[1730830311201,0.7678,2453.1,2453.0,0.0605544]
[1730830312645,5.40427,2453.1,2453.0,0.0605544]
[1730830312942,0.7678,2453.1,2453.0,0.0605544]
[1730830313242,0.7576,2453.5,2453.0,0.0605544]
[1730830313446,0.7576,2453.5,2453.2,4.59534744]
[1730830313601,0.7576,2453.8,2453.2,4.59534744]
[1730830314043,0.7576,2453.8,2453.3,0.33026586]
[1730830314358,0.7576,2453.8,2453.2,4.59534744]
[1730830314529,0.7576,2453.8,2453.3,0.33028529]
[1730830315236,0.7576,2453.8,2453.2,4.59534744]
[1730830316242,0.7576,2453.8,2453.5,4.59534744]
[1730830317272,0.7576,2453.8,2453.6,0.33076017]
[1730830317445,0.7576,2453.8,2453.5,4.59534744]
[1730830317773,0.7576,2453.8,2453.6,0.3309265]
[1730830317934,0.7576,2453.8,2453.5,4.59534744]
[1730830318137,0.7576,2453.8,2453.6,0.33093282]
[1730830318331,0.7576,2453.8,2453.2,7.59534744]
[1730830318579,0.7576,2453.8,2453.3,0.33104431]
[1730830318759,0.7576,2453.8,2453.4,0.33104431]
[1730830318930,0.7576,2453.8,2453.5,0.33104431]
[1730830319136,0.7576,2453.8,2453.6,0.33104431]
[1730830319481,0.7576,2453.8,2453.7,0.05028084]
[1730830319832,0.7576,2453.8,2453.2,7.59534744]
[1730830320102,0.7576,2453.8,2453.3,0.38221631]
[1730830320403,1.3397,2453.5,2453.3,0.05097028]
[1730830320558,1.3397,2453.5,2453.0,0.0605544]
[1730830320559,0.543545,2453.4,2453.0,0.0605544]
[1730830320756,0.7897,2453.5,2453.2,4.59534744]
[1730830321161,0.7897,2453.5,2453.3,0.04368881]
[1730830321773,0.8034,2453.8,2453.3,0.04368881]
[1730830322398,0.8034,2453.8,2453.4,0.33146055]
[1730830322600,0.8034,2453.8,2453.5,4.64629672]
[1730830323171,0.8034,2453.8,2453.6,0.33141604]
[1730830323503,0.8034,2453.8,2453.7,0.05060459]
[1730830324002,0.7982,2454.1,2453.7,0.05060459]
[1730830324165,0.7982,2454.1,2453.5,4.59534744]
[1730830324366,0.7982,2454.1,2453.6,0.38211219]
[1730830324596,0.488284,2454.0,2453.6,0.05065492]
[1730830324797,0.8265,2453.9,2453.3,3.0]
[1730830325108,0.8265,2453.9,2453.4,0.38244945]
[1730830325318,0.8265,2453.9,2453.4,0.05095741]
[1730830325467,4.90173,2453.9,2453.4,0.05095741]
[1730830325799,0.8265,2453.7,2453.4,0.05095741]
[1730830326006,0.8265,2453.7,2453.2,4.59534744]
[1730830326364,0.8265,2453.7,2453.3,0.04388184]
[1730830327097,0.8265,2453.7,2453.3,3.04388184]
[1730830327319,0.7791,2453.9,2453.3,3.04388184]
[1730830327476,1.2374144,2453.9,2453.3,3.04388184]
[1730830328673,4.07533,2453.8,2453.3,3.04388184]
[1730830329113,0.7911,2453.7,2453.3,3.04388184]
[1730830329315,4.86666,2453.7,2453.3,0.04388184]
[1730830329474,0.7802,2453.5,2453.3,0.04388184]
[1730830329671,0.7802,2453.5,2453.0,3.0605544]
[1730830329916,0.7802,2453.5,2453.4,0.043718]
[1730830330207,0.7802,2453.5,2453.0,0.0605544]
[1730830330417,0.7802,2453.5,2453.1,0.0441613]
[1730830330626,0.21150671,2453.4,2453.1,0.0441613]
[1730830332321,1.05970779,2453.4,2453.1,0.0441613]
[1730830332479,0.21150671,2453.4,2453.1,0.0441613]
[1730830333414,1.05970779,2453.4,2453.1,0.0441613]
[1730830333820,4.0763,2453.2,2453.1,0.0441613]
[1730830334028,4.0763,2453.2,2453.0,0.0605544]
[1730830334029,1.98918186,2453.2,2453.0,0.0605544]
[1730830334322,2.18200108,2453.1,2453.0,0.0605544]
[1730830334534,7.11854741,2453.1,2453.0,0.0605544]
[1730830334682,8.42027,2453.1,2453.0,0.0605544]
[1730830334879,10.94537037,2453.1,2453.0,0.0605544]
[1730830335113,9.0973,2452.6,2451.7,0.0605544]
[1730830335315,9.0973,2452.6,2452.5,1.12244481]
[1730830335316,10.4012,2452.6,2452.5,1.12244481]
[1730830335615,10.4012,2452.6,2451.7,0.0605544]
[1730830335616,0.7539,2452.1,2451.7,0.0605544]
[1730830335850,0.84371213,2452.2,2451.9,4.59534744]
[1730830336023,2.0194682,2452.4,2451.9,4.59534744]
[1730830336024,0.84371213,2452.3,2451.9,4.59534744]
[1730830336227,1.59761213,2452.4,2451.7,0.8756544]
[1730830336424,0.28631803,2452.3,2451.7,0.8756544]
[1730830336654,0.84371213,2452.5,2451.9,4.59534744]
[1730830337342,0.55,2452.4,2451.9,4.59534744]
[1730830337549,0.84371213,2452.5,2451.9,8.67380744]
[1730830337773,0.84371213,2452.6,2452.2,4.59534744]
[1730830337914,1.61361213,2452.8,2452.2,8.67329744]
[1730830338116,0.7699,2452.8,2452.2,4.59534744]
[1730830338510,3.57699,2452.8,2452.3,4.07778]
[1730830339026,35.7699,2453.0,2452.2,4.59534744]
[1730830339235,35.7699,2453.0,2452.3,3.0]
[1730830339236,0.84317251,2452.8,2452.3,3.0]
[1730830339413,0.84317251,2452.9,2452.3,7.59534744]
[1730830340660,0.84317251,2452.9,2452.3,11.67314744]
[1730830341033,2.96862339,2452.9,2452.3,7.59534744]
[1730830341333,0.84317251,2452.8,2452.3,7.59534744]
[1730830341653,2.96862339,2452.9,2452.3,7.59534744]
[1730830341859,0.84317251,2452.8,2452.4,4.07761]
[1730830342156,0.84317251,2452.8,2452.3,11.67313744]
[1730830342358,4.84350073,2452.8,2452.3,11.67313744]
[1730830342658,4.00032822,2452.8,2452.5,4.07746]
[1730830342961,2.96862339,2452.9,2452.3,11.67304744]
[1730830343255,0.84317251,2452.8,2452.3,7.59534744]
[1730830343456,0.55,2452.7,2452.1,3.8147]
[1730830343613,0.55,2452.7,2452.1,3.0]
[1730830343614,0.8256,2452.6,2452.1,3.0]
[1730830343815,0.8256,2452.6,2452.2,0.04595059]
[1730830344045,0.8256,2452.6,2452.0,4.59534744]
[1730830344046,0.22187725,2452.5,2452.0,4.59534744]
[1730830344247,0.22187725,2452.5,2452.1,0.04609849]
[1730830344656,0.84317251,2452.7,2452.3,4.59534744]
[1730830344819,0.84317251,2452.7,2452.4,0.04565482]
[1730830345015,0.84317251,2452.7,2452.3,4.59534744]
[1730830345219,0.84317251,2452.7,2452.4,0.04565482]
[1730830346657,0.84317251,2452.7,2452.5,0.04583292]
[1730830346843,0.21079313,2452.6,2452.3,4.59534744]
[1730830347215,0.21079313,2452.6,2452.4,0.04598079]
[1730830347616,0.21079313,2452.6,2452.2,0.7846]
[1730830347820,0.21079313,2452.6,2452.3,0.04612866]
[1730830348021,0.21079313,2452.6,2452.3,4.59534744]
[1730830348322,0.21079313,2452.6,2452.4,0.04598079]
[1730830349161,1.05396564,2452.6,2452.4,0.04598079]
[1730830349532,0.7973,2452.5,2452.3,4.59534744]
[1730830350962,1.65837251,2452.7,2452.3,4.59534744]
[1730830351162,2.33186523,2452.7,2452.3,4.59534744]
[1730830352479,0.8152,2452.7,2452.4,4.0776]
[1730830352641,0.84317251,2452.8,2452.4,4.0776]
[1730830352842,3.78142339,2452.9,2452.6,4.59534744]
[1730830353153,0.84317251,2452.8,2452.6,4.59534744]
[1730830353327,0.84317251,2452.9,2452.6,8.67256744]
[1730830353726,5.03946626,2452.9,2452.6,4.59534744]
[1730830354930,5.03946626,2452.9,2452.6,8.67254744]
[1730830355361,0.84317251,2452.9,2452.7,4.12253723]
[1730830355576,35.84317251,2453.0,2452.7,3.04553723]
[1730830355727,35.84317251,2453.0,2452.7,7.12264723]
[1730830355922,35.84317251,2453.0,2452.7,11.19966723]
[1730830356231,35.84317251,2453.0,2452.7,3.04553723]
[1730830356431,35.84317251,2453.0,2452.7,7.12257723]
[1730830356767,35.84317251,2453.0,2452.7,3.04553723]
[1730830356962,39.95818626,2453.0,2452.7,3.04553723]
[1730830357681,39.95818626,2453.0,2452.7,7.12256723]
[1730830357883,39.95818626,2453.0,2452.7,3.04553723]
[1730830358385,0.821,2452.8,2452.7,0.04553723]
[1730830358533,6.1636774,2452.8,2452.7,0.04553723]
[1730830358978,6.1636774,2452.8,2452.3,4.59534744]
[1730830359292,0.84425125,2452.7,2452.4,0.04571109]
[1730830359648,0.84425125,2452.7,2452.4,3.0]
[1730830359973,0.84425125,2452.7,2452.5,0.04562359]
[1730830360170,0.70079287,2452.6,2452.5,0.04562359]
[1730830360369,1.54504412,2452.6,2452.5,0.04562359]
[1730830360584,0.70079287,2452.6,2452.5,0.04562359]
[1730830360738,1.54504412,2452.6,2452.5,0.04562359]
[1730830362060,1.54504412,2452.6,2452.4,3.0]
[1730830362389,1.54504412,2452.6,2452.3,4.59534744]
[1730830362751,0.28098029,2452.5,2452.4,0.04581171]
[1730830362972,1.12523154,2452.5,2452.4,0.04581171]
[1730830363794,0.84425125,2452.5,2452.4,0.04581171]
[1730830364733,0.84425125,2452.5,2452.3,4.59534744]
[1730830364946,0.84425125,2452.5,2452.4,0.04580366]
[1730830365268,1.96555164,2452.6,2452.4,0.04580366]
[1730830365470,0.84516307,2452.5,2452.4,0.04580366]
[1730830366462,1.29494832,2452.5,2452.4,0.04580366]
[1730830366864,1.29494832,2452.5,2452.3,4.59534744]
[1730830366865,0.44970597,2452.5,2452.3,4.59534744]
[1730830367049,0.84521178,2452.4,2452.3,4.59534744]
[1730830369590,1.71446474,2452.5,2452.3,4.59534744]
[1730830369888,0.84556709,2452.4,2452.3,5.39984744]
[1730830370044,0.84556709,2452.4,2452.3,4.59534744]
[1730830370245,1.71450515,2452.4,2452.2,3.0]
[1730830370571,0.84553946,2452.3,2452.1,3.0]
[1730830371369,0.84553946,2452.3,2452.2,6.89400726]
[1730830372387,1.26475877,2452.3,2452.2,6.89400726]
[1730830372848,1.71450515,2452.4,2452.2,6.89400726]
[1730830373054,1.26475877,2452.3,2452.2,6.89400726]
[1730830374493,2.13609141,2452.4,2452.2,6.89400726]
[1730830374691,0.42499714,2452.3,2452.2,6.89400726]
[1730830375383,2.11134217,2452.3,2452.2,6.89400726]
[1730830376254,2.11134217,2452.3,2452.2,6.93864861]
[1730830376851,2.53887714,2452.3,2452.2,0.04464135]
[1730830377053,0.42499714,2452.3,2452.2,0.04464135]
[1730830377252,0.42499714,2452.3,2451.9,3.89400726]
[1730830377447,0.42499714,2452.3,2451.9,4.07846]
[1730830377448,1.27042747,2452.0,2451.9,4.07846]
[1730830377761,0.84708247,2452.2,2452.0,12.62861452]
[1730830377961,0.84708247,2452.2,2452.1,0.7623]
[1730830378164,1.27042747,2452.3,2452.1,7.88521925]
[1730830378165,0.84708247,2452.3,2452.1,7.88521925]
[1730830378361,0.84708247,2452.2,2452.1,7.88521925]
[1730830379501,1.27042747,2452.2,2452.1,3.80708925]
[1730830379654,1.27042747,2452.2,2452.1,7.88521925]
[1730830380295,1.27042747,2452.3,2452.1,7.88521925]
[1730830380497,1.27042747,2452.2,2452.1,7.88521925]
[1730830380796,1.27042747,2452.3,2452.2,4.07797]
[1730830380992,1.27042747,2452.3,2452.2,7.07797]
[1730830381203,1.27042747,2452.3,2452.2,7.12261135]
[1730830381363,1.69390329,2452.3,2452.2,0.04464135]
[1730830381996,1.69390329,2452.3,2452.2,3.04464135]
[1730830382180,1.69390329,2452.3,2452.2,0.04464135]
[1730830383255,2.12003319,2452.4,2452.3,4.0778]
[1730830383256,1.69390329,2452.4,2452.3,4.0778]
[1730830383502,1.69390329,2452.4,2452.3,10.97180726]
[1730830383858,35.8035,2453.0,2452.4,3.0]
[1730830384080,35.8035,2453.0,2452.3,11.01630072]
[1730830384081,3.58035,2452.9,2452.6,3.89400726]
[1730830384452,3.58035,2452.9,2452.7,0.04390203]
[1730830385358,2.54471881,2452.8,2452.7,4.12094203]
[1730830385559,2.54471881,2452.9,2452.8,4.07697]
[1730830385761,2.54471881,2452.9,2452.7,0.04390203]
[1730830386093,1.24926597,2452.9,2452.7,4.07712]
[1730830386411,1.24926597,2452.9,2452.8,0.04706364]
[1730830386598,1.24926597,2452.9,2452.7,4.07706]
[1730830386899,2.1201737,2452.8,2452.7,4.07706]
[1730830387192,2.1201737,2452.8,2452.7,10.97106726]
[1730830388117,1.69602638,2452.9,2452.7,10.97106726]
[1730830388318,1.69602638,2452.9,2452.8,4.07697]
[1730830389903,36.69602638,2453.0,2452.8,4.07697]
[1730830390471,1.27093791,2452.9,2452.8,4.07697]
[1730830390671,36.69602638,2453.0,2452.8,4.07697]
[1730830390868,1.27093123,2452.9,2452.8,4.07697]
[1730830391094,1.27093123,2452.9,2452.8,7.84277]
[1730830391472,36.27093123,2453.0,2452.9,7.0768]
[1730830391818,36.27093123,2453.0,2452.9,10.97080726]
[1730830391978,35.0,2453.0,2452.9,7.8638]
[1730830393605,35.0,2453.0,2452.9,7.91421476]
[1730830395316,35.0,2453.0,2452.9,11.80822202]
[1730830395676,22.03775272,2453.0,2452.9,11.80822202]
[1730830395873,22.03775272,2453.0,2452.9,12.13919344]
[1730830396292,21.03775272,2453.0,2452.9,12.13919344]
[1730830397618,21.03775272,2453.0,2452.9,8.24518618]
[1730830397797,21.03775272,2453.0,2452.9,0.05041476]
[1730830398575,21.03775272,2453.0,2452.9,4.12721476]
[1730830399493,21.03775272,2453.0,2452.9,11.82792202]
[1730830399494,10.53206005,2453.0,2452.9,11.82792202]
[1730830400175,9.69106005,2453.0,2452.9,11.83792202]
[1730830400519,8.05206005,2453.0,2452.9,12.16834019]
[1730830401279,8.05206005,2453.0,2452.9,12.15834019]
[1730830401517,8.05206005,2453.0,2452.9,8.26433293]
[1730830402234,3.97542005,2453.0,2452.9,12.16834019]
[1730830402520,0.7908,2454.1,2453.8,4.0752]
[1730830402821,0.7908,2454.1,2453.9,0.05567734]
[1730830403018,0.99797312,2454.1,2453.9,0.05567734]
[1730830403879,0.7908,2454.1,2453.9,0.05567734]
[1730830404081,0.7908,2454.1,2453.7,7.07546]
[1730830404281,0.7908,2454.1,2454.0,0.05517878]
[1730830404528,0.7908,2454.1,2453.6,3.0]
[1730830404815,0.7908,2454.1,2453.6,7.07556]
[1730830405017,0.99697312,2454.1,2453.7,0.0556869]
[1730830405218,0.99697312,2454.1,2453.7,4.1310469]
[1730830405420,0.7908,2454.1,2453.7,0.0556869]
[1730830406026,0.8125,2454.0,2453.7,0.0556869]
[1730830408027,0.8053,2453.9,2453.7,0.0556869]
[1730830408184,0.8053,2453.9,2453.1,4.07635]
[1730830408529,4.87505,2453.6,2452.9,12.80229726]
[1730830408824,0.7994,2453.6,2452.9,7.97067726]
[1730830409125,0.7994,2453.5,2453.0,0.05686553]
[1730830409286,1.286913,2453.5,2453.0,0.05686553]
[1730830409483,1.286913,2453.5,2453.1,3.0]
[1730830409685,1.286913,2453.5,2453.1,7.07646]
[1730830409887,0.7994,2453.5,2453.2,0.05645173]
[1730830410499,0.7994,2453.5,2453.0,3.0]
[1730830410704,0.7994,2453.5,2453.3,0.05624485]
[1730830410908,0.7994,2453.5,2452.7,0.8185]
[1730830410909,0.7994,2453.5,2452.8,3.0]
[1730830411123,4.07564,2453.6,2452.7,3.7913]